Workbook

Sheet Sheet1
B4: worker | I4: work_place
B5: id | C5: int (10) | D5: Unikālais numurs | I5: id | J5: int(10) | K5: Unikāls numurs
B6: worker_name | C6: varchar(50) | D6: Darbinieka vārds | I6: work_name | J6: varchar(20) | K6: Darba vietas nosaukums
B9: work | I9: funds_info
B10: id | C10: int(10) | D10: Unikāls numurs | I10: id | J10: int(10) | K10: Unikāls numurs
B11: work_type | C11: varchar(20) | D11: Darba nosaukums | I11: price | J11: decimal(20,0) | K11: Cena par darbu
B12: work_problem | C12: varchar(150) | D12: Darba kļūdas apraksts | I12: amount | J12: decimal(20,0) | K12: Daudzums cik nepieciešams
B13: work_nr | C13: decimal(5,2) | D13: Darba numurs | I13: sum | J13: decimal(20,0) | K13: Kopējā summa
B14: follow_nr | C14: varchar(10) | D14: Apsekojuma numurs
B15: unit | C15: int(50) | D15: Mērvienības norādes skaitlis
B16: measurement | C16: varchar(10) | D16: Mērvienības nosaukums
B19: date
B20: id | C20: int(10) | D20: Unikāls numurs
B21: week_day | C21: tinyint(7) | D21: Nedēļas diena
B22: date | C22: DATE | D22: Datums katrai dienai
B23: time | C23: TIME | D23: Stundas laiki
B24: start_time | C24: DATETIME | D24: Sākuma laiks
B25: end_time | C25: DATETIME | D25: Beigu laiks
C28: Datums | D28: No | E28: Darba tips | F28: Vieta | G28: Kļūdas apraksts | H28: Apsekojuma NR/daudzums | I28: Datums | J28: Līdz | K28: Darba veicējs | L28: Km | M28: stundas | N28: Darba nr | P28: merv | Q28: cena | R28: Daudzums | S28: Kopā
B29: =WEEKDAY(C29) -> 1900-01-01 | C29: 2012-01-01 | D29: 06:00:00 | E29: Apgaita | F29: Jelgava | G29: Maršruta apsekošana | H29: 2012.01.01-01 | I29: =C29 -> 2012-01-01 | J29: 07:30:00 | K29: U. Grunde-Zeiferts | L29: 20 | M29: =J29-D29 -> 01:30:00 | N29: =LOOKUP(G29,'[1]3'!$B$2:$B$143,'[1]3'!$A$2:$A$143) -> 5.2 | O29: =LOOKUP(G29,'[1]3'!$B$2:$B$143,'[1]3'!$B$2:$B$143) -> Maršruta apsekošana | P29: =LOOKUP(G29,'[1]3'!$B$2:$B$143,'[1]3'!$C$2:$C$143) -> km | Q29: =LOOKUP(G29,'[1]3'!$B$2:$B$143,'[1]3'!$D$2:$D$143) -> 1.00 | R29: 20.0 | S29: =Q29*R29 -> 20.00
B30: 1900-01-02 | C30: 2012-01-02 | D30: 06:00:00 | E30: Apgaita | F30: Jelgava | G30: Maršruta apsekošana | H30: 2012.01.02-01 | I30: 2012-01-02 | J30: 07:30:00 | K30: U. Grunde-Zeiferts | L30: 20 | M30: 01:30:00 | N30: =LOOKUP(G30,'[1]3'!$B$2:$B$143,'[1]3'!$A$2:$A$143) -> 5.2 | O30: =LOOKUP(G30,'[1]3'!$B$2:$B$143,'[1]3'!$B$2:$B$143) -> Maršruta apsekošana | P30: =LOOKUP(G30,'[1]3'!$B$2:$B$143,'[1]3'!$C$2:$C$143) -> km | Q30: =LOOKUP(G30,'[1]3'!$B$2:$B$143,'[1]3'!$D$2:$D$143) -> 1.00 | R30: 20.0 | S30: =Q30*R30 -> 20.00
B31: 1900-01-02 | C31: 2012-01-02 | D31: 07:45:00 | E31: Sapulce | F31: ME | G31: Ražošanas sapulce | I31: 2012-01-02 | J31: 08:30:00 | K31: U. Grunde-Zeiferts | M31: 00:45:00
B32: 1900-01-02 | C32: 2012-01-02 | D32: 09:00:00 | E32: Būvniecība | F32: Raiņa-Pasta | G32: Signālgalvu uzstādīšana | I32: 2012-01-02 | J32: 13:00:00 | K32: Ē. Aukmanis | M32: 04:00:00
B33: 1900-01-02 | C33: 2012-01-02 | D33: 09:00:00 | E33: Būvniecība | F33: Raiņa-Pasta | G33: Signālgalvu uzstādīšana | I33: 2012-01-02 | J33: 13:00:00 | K33: U. Grunde-Zeiferts | L33: 5 | M33: 04:00:00
B34: 1900-01-02 | C34: 2012-01-02 | D34: 13:30:00 | E34: Būvniecība | F34: Raiņa-Pasta | G34: Signālgalvu pievienošana | I34: 2012-01-02 | J34: 15:00:00 | K34: Ē. Aukmanis | L34: 5 | M34: 01:30:00
B35: 1900-01-02 | C35: 2012-01-02 | D35: 13:30:00 | E35: Būvniecība | F35: Raiņa-Pasta | G35: Signālgalvu pievienošana | I35: 2012-01-02 | J35: 16:00:00 | K35: U. Grunde-Zeiferts | L35: 5 | M35: 02:30:00
B36: 1900-01-02 | C36: 2012-01-02 | D36: 16:00:00 | E36: Info | F36: ME | G36: Nenodoto signālgalvu sanešana Mazā noliktavā | I36: 2012-01-02 | J36: 17:00:00 | K36: U. Grunde-Zeiferts | M36: 01:00:00
B37: 1900-01-03 | C37: 2012-01-03 | D37: 06:00:00 | E37: Apgaita | F37: Jelgava | G37: Maršruta apsekošana | H37: 2012.01.03-01 | I37: 2012-01-03 | J37: 07:30:00 | K37: U.Grunde-Zeiferts | L37: 20 | M37: 01:30:00 | N37: =LOOKUP(G37,'[1]3'!$B$2:$B$143,'[1]3'!$A$2:$A$143) -> 5.2 | O37: =LOOKUP(G37,'[1]3'!$B$2:$B$143,'[1]3'!$B$2:$B$143) -> Maršruta apsekošana | P37: =LOOKUP(G37,'[1]3'!$B$2:$B$143,'[1]3'!$C$2:$C$143) -> km | Q37: =LOOKUP(G37,'[1]3'!$B$2:$B$143,'[1]3'!$D$2:$D$143) -> 1.00 | R37: 20.0 | S37: =Q37*R37 -> 20.00
B38: 1900-01-03 | C38: 2012-01-03 | D38: 07:45:00 | E38: Sapulce | F38: ME | G38: Ražošanas sapulce | I38: 2012-01-03 | J38: 08:30:00 | K38: U. Grunde-Zeiferts | M38: 00:45:00
B39: 1900-01-03 | C39: 2012-01-03 | D39: 08:40:00 | E39: Info | F39: ME | G39: Donatas interesējas par Stacijas MINI luksoforu | I39: 2012-01-03 | J39: 08:50:00 | K39: U. Grunde-Zeiferts | M39: 00:10:00
B40: 1900-01-03 | C40: 2012-01-03 | D40: 09:00:00 | E40: Dokmentacija | F40: ME | G40: Skaitītāju rādījumi, P/S žurnāls | I40: 2012-01-03 | J40: 10:30:00 | K40: U. Grunde-Zeiferts | M40: 01:30:00
B41: 1900-01-03 | C41: 2012-01-03 | D41: 09:00:00 | E41: Dokmentacija | F41: ME | G41: Skaitītāju rādījumi, P/S žurnāls | I41: 2012-01-03 | J41: 10:30:00 | K41: U. Grunde-Zeiferts | M41: 01:30:00
B42: 1900-01-03 | C42: 2012-01-03 | D42: 10:30:00 | E42: Dokmentacija | F42: P/S | G42: Rēķinu ievešana P/S | I42: 2012-01-03 | J42: 10:45:00 | K42: U. Grunde-Zeiferts | L42: 5 | M42: 00:15:00
B43: 1900-01-03 | C43: 2012-01-03 | D43: 11:50:00 | E43: Izsaukums | F43: Rīgas-Izstādes | G43: Kļūda GEP | H43: 2012.01.03-02 | I43: 2012-01-03 | J43: 12:50:00 | K43: U.Grunde-Zeiferts | L43: 10 | M43: 01:00:00 | N43: 5.1 | O43: Izsaukums luksofora objektā | P43: gab. | Q43: 10.00 | R43: 1.0 | S43: =Q43*R43 -> 10.00
B44: 1900-01-03 | C44: 2012-01-03 | D44: 13:00:00 | E44: Info | F44: P/S | G44: Māris Mielavs par meteostaciju uzturēšanu | I44: 2012-01-03 | J44: 13:45:00 | K44: U. Grunde-Zeiferts | L44: 5 | M44: 00:45:00
B45: 1900-01-03 | C45: 2012-01-03 | D45: 14:00:00 | E45: Izsaukums | F45: Dobeles-Brieža | G45: Andrejs Bobikins liek pārbaudīt skaitītāja rādījumus | H45: 2012.01.03-03 | I45: 2012-01-03 | J45: 14:15:00 | K45: U.Grunde-Zeiferts | L45: 5 | M45: 00:15:00 | N45: 5.1 | O45: Izsaukums luksofora objektā | P45: gab. | Q45: 10.00 | R45: 1.0 | S45: =Q45*R45 -> 10.00
B46: 1900-01-03 | C46: 2012-01-03 | D46: 14:15:00 | E46: Izsaukums | F46: Raiņa-Sarmas | G46: Andrejs Bobikins liek pārbaudīt skaitītāja rādījumus | H46: 2012.01.03-04 | I46: 2012-01-03 | J46: 14:30:00 | K46: U.Grunde-Zeiferts | L46: 5 | M46: 00:15:00 | N46: 5.1 | O46: Izsaukums luksofora objektā | P46: gab. | Q46: 10.00 | R46: 1.0 | S46: 10.00
B47: 1900-01-03 | C47: 2012-01-03 | D47: 14:50:00 | E47: Izsaukums | F47: Raiņa-Mātera | G47: GP1G1 | H47: 2012.01.03-05 | I47: 2012-01-03 | J47: 15:30:00 | K47: U.Grunde-Zeiferts | L47: 5 | M47: 00:40:00 | N47: 5.1 | O47: Izsaukums luksofora objektā | P47: gab. | Q47: 10.00 | R47: 1.0 | S47: 10.00
B48: 1900-01-03 | C48: 2012-01-03 | D48: 14:50:00 | E48: Apkope | F48: Raiņa-Mātera | G48: Vadības plates ZKS tipa drošinātāja nomaiņa | I48: 2012-01-03 | J48: 15:30:00 | K48: U. Grunde-Zeiferts | M48: =J48-D48 -> 00:40:00 | N48: =LOOKUP(G48,'[1]3'!$B$2:$B$143,'[1]3'!$A$2:$A$143) -> 3.17 | O48: =LOOKUP(G48,'[1]3'!$B$2:$B$143,'[1]3'!$B$2:$B$143) -> Vadības plates ZKS tipa drošinātāja nomaiņa | P48: =LOOKUP(G48,'[1]3'!$B$2:$B$143,'[1]3'!$C$2:$C$143) -> gab. | Q48: =LOOKUP(G48,'[1]3'!$B$2:$B$143,'[1]3'!$D$2:$D$143) -> 10.00 | R48: 1.0 | S48: 10.00
B49: 1900-01-03 | C49: 2012-01-03 | D49: 14:50:00 | E49: Apkope | F49: Raiņa-Mātera | G49: Bojājuma noteikšana | I49: 2012-01-03 | J49: 15:30:00 | K49: U. Grunde-Zeiferts | M49: =J49-D49 -> 00:40:00 | N49: =LOOKUP(G49,'[1]3'!$B$2:$B$143,'[1]3'!$A$2:$A$143) -> 2.4 | O49: =LOOKUP(G49,'[1]3'!$B$2:$B$143,'[1]3'!$B$2:$B$143) -> Balsta vāka maiņa | P49: =LOOKUP(G49,'[1]3'!$B$2:$B$143,'[1]3'!$C$2:$C$143) -> gab. | Q49: =LOOKUP(G49,'[1]3'!$B$2:$B$143,'[1]3'!$D$2:$D$143) -> 5.00 | R49: 1.0 | S49: 5.00
B50: 1900-01-03 | C50: 2012-01-03 | D50: 15:45:00 | E50: Izsaukums | F50: Raiņa-Pasta | G50: Trūkst balsta vāks | H50: 2012.01.03-06 | I50: 2012-01-03 | J50: 16:00:00 | K50: U.Grunde-Zeiferts | L50: 5 | M50: =J50-D50 -> 00:15:00 | N50: 5.1 | O50: Izsaukums luksofora objektā | P50: gab. | Q50: 10.00 | R50: 1.0 | S50: 10.00
B51: 1900-01-03 | C51: 2012-01-03 | D51: 15:45:00 | E51: Apkope | F51: Raiņa-Pasta | G51: Balsta vāks | I51: 2012-01-03 | J51: 16:00:00 | K51: U. Grunde-Zeiferts | M51: 00:15:00 | N51: =LOOKUP(G51,'[1]3'!$B$2:$B$143,'[1]3'!$A$2:$A$143) -> 2.4 | O51: =LOOKUP(G51,'[1]3'!$B$2:$B$143,'[1]3'!$B$2:$B$143) -> Balsta vāka maiņa | P51: =LOOKUP(G51,'[1]3'!$B$2:$B$143,'[1]3'!$C$2:$C$143) -> gab. | Q51: =LOOKUP(G51,'[1]3'!$B$2:$B$143,'[1]3'!$D$2:$D$143) -> 5.00 | R51: 1.0 | S51: 5.00
B52: 1900-01-03 | C52: 2012-01-03 | D52: 16:00:00 | E52: Datortehnikas apkope | F52: ME | G52: Kopētāja sagatavošana darbam, Veikala printera neveiksmīga instalēšana, Anrda datora papildus konfigurēšana | I52: 2012-01-03 | J52: 17:30:00 | K52: U. Grunde-Zeiferts | M52: 01:30:00
B53: 1900-01-04 | C53: 2012-01-04 | D53: 06:00:00 | E53: Apgaita | F53: Jelgava | G53: Maršruta apsekošana | H53: 2012.01.04-01 | I53: 2012-01-04 | J53: 07:30:00 | K53: U.Grunde-Zeiferts | L53: 20 | M53: 01:30:00 | N53: =LOOKUP(G53,'[1]3'!$B$2:$B$143,'[1]3'!$A$2:$A$143) -> 5.2 | O53: =LOOKUP(G53,'[1]3'!$B$2:$B$143,'[1]3'!$B$2:$B$143) -> Maršruta apsekošana | P53: =LOOKUP(G53,'[1]3'!$B$2:$B$143,'[1]3'!$C$2:$C$143) -> km | Q53: =LOOKUP(G53,'[1]3'!$B$2:$B$143,'[1]3'!$D$2:$D$143) -> 1.00 | R53: 20.0 | S53: =Q53*R53 -> 20.00
B54: 1900-01-04 | C54: 2012-01-04 | D54: 07:45:00 | E54: Sapulce | F54: ME | G54: Ražošanas sapulce | I54: 2012-01-04 | J54: 08:30:00 | K54: U. Grunde-Zeiferts | M54: 00:45:00
B55: 1900-01-04 | C55: 2012-01-04 | D55: 08:30:00 | E55: Dokmentacija | F55: ME | G55: Meteostacijas uzturēšanas līguma izmaksas | I55: 2012-01-04 | J55: 09:00:00 | K55: U. Grunde-Zeiferts | M55: 00:30:00
B56: 1900-01-04 | C56: 2012-01-04 | D56: 09:00:00 | E56: Izsaukums | F56: Raiņa-Mātera | G56: Trūkst balsta vāks | H56: 2012.01.04-02 | I56: 2012-01-04 | J56: 16:00:00 | K56: U.Grunde-Zeiferts | L56: 5 | M56: 07:00:00 | N56: 5.1 | O56: Izsaukums luksofora objektā | P56: gab. | Q56: 10.00 | R56: 1.0 | S56: =Q56*R56 -> 10.00
B57: 1900-01-04 | C57: 2012-01-04 | D57: 09:00:00 | E57: Apkope | F57: Raiņa-Mātera | G57: Spuldzes maiņa balstā | I57: 2012-01-04 | J57: 09:30:00 | K57: U. Grunde-Zeiferts | M57: 00:30:00 | N57: =LOOKUP(G57,'[1]3'!$B$2:$B$143,'[1]3'!$A$2:$A$143) -> 1.28 | O57: =LOOKUP(G57,'[1]3'!$B$2:$B$143,'[1]3'!$B$2:$B$143) -> SP-7 tipa sadalnes montāža | P57: =LOOKUP(G57,'[1]3'!$B$2:$B$143,'[1]3'!$C$2:$C$143) -> gab. | Q57: =LOOKUP(G57,'[1]3'!$B$2:$B$143,'[1]3'!$D$2:$D$143) -> 20.00 | R57: 1.0 | S57: =Q57*R57 -> 20.00
B58: 1900-01-04 | C58: 2012-01-04 | D58: 09:30:00 | E58: Dokmentacija | F58: ME | G58: Skaitītāju rādījumi LVC | I58: 2012-01-04 | J58: 10:00:00 | K58: U. Grunde-Zeiferts | M58: 00:30:00
B59: 1900-01-04 | C59: 2012-01-04 | D59: 10:00:00 | E59: Datortehnikas apkope | F59: ME | G59: Kopētāja pieinstalēšana serverim, printera resursu izdalīšana, Kopētaja piesaiste Aināra, Andra,Veikala datoram | I59: 2012-01-04 | J59: 11:30:00 | K59: U. Grunde-Zeiferts | M59: 01:30:00
B60: 1900-01-04 | C60: 2012-01-04 | D60: 11:30:00 | E60: Datortehnikas apkope | F60: ME | G60: Datortīkla vada ievilšana virs veikala griestiem | I60: 2012-01-04 | J60: 13:00:00 | K60: U. Grunde-Zeiferts | M60: 01:30:00
B61: 1900-01-04 | C61: 2012-01-04 | D61: 13:00:00 | E61: Dokmentacija | F61: P/S | G61: Māris Mielavs par meteostaciju uzturēšanu | I61: 2012-01-04 | J61: 13:30:00 | K61: U. Grunde-Zeiferts | L61: 5 | M61: 00:30:00
B62: 1900-01-04 | C62: 2012-01-04 | D62: 13:30:00 | E62: Projektēšana | F62: P/S | G62: Dzidra Staša par Lietuvas ielas signālplāniem | I62: 2012-01-04 | J62: 14:30:00 | K62: U. Grunde-Zeiferts | M62: 01:00:00
B63: 1900-01-04 | C63: 2012-01-04 | D63: 14:45:00 | E63: Datortehnikas apkope | F63: ME | G63: Pie Brigitas. Meteostacijas uzturēšanas līguma izmaksas | I63: 2012-01-04 | J63: 15:00:00 | K63: U. Grunde-Zeiferts | M63: 00:15:00
B64: 1900-01-04 | C64: 2012-01-04 | D64: 14:22:00 | E64: Izsaukums | F64: Raiņa-Akadēmijas | G64: Nolauzti stiprinājuma kronšteini atkārtotāja transporta signālgalvai V3 | H64: 2012.01.04-03 | I64: 2012-01-04 | J64: 17:00:00 | K64: U.Grunde-Zeiferts | L64: 5 | M64: 02:38:00 | N64: 5.1 | O64: Izsaukums luksofora objektā | P64: gab. | Q64: 10.00 | R64: 1.0 | S64: =Q64*R64 -> 10.00
B65: 1900-01-04 | C65: 2012-01-04 | D65: 15:00:00 | E65: Apkope | F65: Raiņa-Akadēmijas | G65: Signālgalvas demontāža uz balsta | I65: 2012-01-04 | J65: 16:00:00 | K65: U. Grunde-Zeiferts | M65: 01:00:00 | N65: =LOOKUP(G65,'[1]3'!$B$2:$B$143,'[1]3'!$A$2:$A$143) -> 4.4 | O65: =LOOKUP(G65,'[1]3'!$B$2:$B$143,'[1]3'!$B$2:$B$143) -> Signālgalvas demontāža uz balsta | P65: =LOOKUP(G65,'[1]3'!$B$2:$B$143,'[1]3'!$C$2:$C$143) -> gab. | Q65: =LOOKUP(G65,'[1]3'!$B$2:$B$143,'[1]3'!$D$2:$D$143) -> 10.00 | R65: 1.0 | S65: =Q65*R65 -> 10.00
B66: 1900-01-04 | C66: 2012-01-04 | D66: 16:00:00 | E66: Apkope | F66: Raiņa-Akadēmijas | G66: Pasūtītāja transporta signālgalvas montāža uz balsta | I66: 2012-01-04 | J66: 17:30:00 | K66: U. Grunde-Zeiferts | M66: 01:30:00 | N66: =LOOKUP(G66,'[1]3'!$B$2:$B$143,'[1]3'!$A$2:$A$143) -> 2.43 | O66: =LOOKUP(G66,'[1]3'!$B$2:$B$143,'[1]3'!$B$2:$B$143) -> Pasūtītāja transporta signālgalvas montāža uz balsta | P66: =LOOKUP(G66,'[1]3'!$B$2:$B$143,'[1]3'!$C$2:$C$143) -> gab. | Q66: =LOOKUP(G66,'[1]3'!$B$2:$B$143,'[1]3'!$D$2:$D$143) -> 20.00 | R66: 1.0 | S66: =Q66*R66 -> 20.00
B67: 1900-01-04 | C67: 2012-01-04 | D67: 16:00:00 | E67: Apkope | F67: Raiņa-Akadēmijas | G67: Signālkabeļa Cu 7x1,5 montāža stabā, konsolē | I67: 2012-01-04 | J67: 17:30:00 | K67: U. Grunde-Zeiferts | M67: 01:30:00 | N67: =LOOKUP(G67,'[1]3'!$B$2:$B$143,'[1]3'!$A$2:$A$143) -> 1.11 | O67: =LOOKUP(G67,'[1]3'!$B$2:$B$143,'[1]3'!$B$2:$B$143) -> Signālkabeļa Cu 7x1,5 montāža stabā, konsolē | P67: =LOOKUP(G67,'[1]3'!$B$2:$B$143,'[1]3'!$C$2:$C$143) -> m. | Q67: =LOOKUP(G67,'[1]3'!$B$2:$B$143,'[1]3'!$D$2:$D$143) -> 1.50 | R67: 3.0 | S67: =Q67*R67 -> 4.50
B68: 1900-01-04 | C68: 2012-01-04 | D68: 16:00:00 | E68: Apkope | F68: Raiņa-Akadēmijas | G68: Signālkabeļa spaiļu komplekta nomaiņa balstā, konsolē | I68: 2012-01-04 | J68: 17:30:00 | K68: U. Grunde-Zeiferts | M68: 01:30:00 | N68: =LOOKUP(G68,'[1]3'!$B$2:$B$143,'[1]3'!$A$2:$A$143) -> 1.25 | O68: =LOOKUP(G68,'[1]3'!$B$2:$B$143,'[1]3'!$B$2:$B$143) -> Signālkabeļa spaiļu komplekta nomaiņa balstā, konsolē | P68: =LOOKUP(G68,'[1]3'!$B$2:$B$143,'[1]3'!$C$2:$C$143) -> kompl. | Q68: =LOOKUP(G68,'[1]3'!$B$2:$B$143,'[1]3'!$D$2:$D$143) -> 5.00 | R68: 1.0 | S68: =Q68*R68 -> 5.00
B69: 1900-01-04 | C69: 2012-01-04 | D69: 21:00:00 | E69: Dokmentacija | F69: mājās | G69: Slodzes savākšana par decembri | I69: 2012-01-04 | J69: 21:30:00 | K69: U. Grunde-Zeiferts | L69: 5 | M69: 00:30:00
B70: 1900-01-04 | C70: 2012-01-04 | D70: 20:00:00 | E70: Maiņa | F70: Jelgava | G70: Maiņas nodošana | I70: =C70 -> 2012-01-04 | J70: 21:00:00 | K70: U. Grunde-Zeiferts, E.Aukmanis | L70: 50 | M70: =J70-D70 -> 01:00:00
B71: 1900-01-05 | C71: 2012-01-05 | D71: 06:00:00 | E71: Apgaita | F71: Jelgava | G71: Maršruta apsekošana | H71: 2012.01.05-01 | I71: 2012-01-05 | J71: 07:30:00 | K71: Ē.Aukmanis | L71: 25 | M71: 01:30:00 | N71: =LOOKUP(G71,'[1]3'!$B$2:$B$143,'[1]3'!$A$2:$A$143) -> 5.2 | O71: =LOOKUP(G71,'[1]3'!$B$2:$B$143,'[1]3'!$B$2:$B$143) -> Maršruta apsekošana | P71: =LOOKUP(G71,'[1]3'!$B$2:$B$143,'[1]3'!$C$2:$C$143) -> km | Q71: =LOOKUP(G71,'[1]3'!$B$2:$B$143,'[1]3'!$D$2:$D$143) -> 1.00 | R71: 20.0 | S71: =Q71*R71 -> 20.00
